bitfinex/quotes_ETHUSD_20260203
["timestamp","ask_amount","ask_price","bid_price","bid_amount"]
[1770114615790,11.85070629,2294.3,2293.7,0.001]
[1770114615963,12.93931076,2294.2,2293.5,0.001]
[1770114616169,12.93931076,2294.2,2293.4,0.001]
[1770114616170,14.49352915,2294.1,2293.4,0.001]
[1770114616674,11.84960629,2293.9,2293.2,0.001]
[1770114616877,11.84960629,2293.9,2293.1,0.001]
[1770114618007,11.84960629,2293.9,2293.0,0.001]
[1770114618008,12.93950078,2293.8,2293.0,0.001]
[1770114618170,14.12880924,2293.8,2293.0,0.001]
[1770114619695,2.27920295,2293.8,2293.0,0.001]
[1770114619889,7.00300227,2294.1,2293.3,1.09013212]
[1770114620084,1.08979947,2294.0,2293.3,12.91647885]
[1770114620284,13.01128642,2294.0,2293.0,13.96427305]
[1770114620484,13.01128642,2294.0,2293.0,12.87400059]
[1770114621289,13.01128642,2294.0,2293.0,0.001]
[1770114622781,1.08979947,2294.0,2293.1,12.53192057]
[1770114623102,1.08979947,2294.0,2293.2,13.78956045]
[1770114623307,13.01128642,2294.0,2293.0,0.001]
[1770114623506,13.01128642,2294.0,2293.0,0.04447826]
[1770114623807,1.08979947,2294.0,2293.1,12.48844231]
[1770114625319,1.08979947,2294.0,2293.0,1.09126492]
[1770114625921,1.08979947,2294.0,2293.1,13.60220388]
[1770114626103,2.00377405,2294.1,2293.2,14.28485844]
[1770114626697,13.925261,2294.1,2293.2,1.79641613]
[1770114627026,13.925261,2294.1,2293.1,1.13370465]
[1770114627396,13.925261,2294.1,2293.0,1.09124176]
[1770114628223,13.925261,2294.1,2293.2,0.001]
[1770114628797,2.00377405,2294.1,2293.2,12.48944231]
[1770114629029,0.0011,2293.8,2293.2,12.48944231]
[1770114629221,0.0011,2293.8,2293.2,14.29231215]
[1770114629721,0.0011,2293.8,2293.2,1.80386984]
[1770114629923,0.0011,2293.8,2293.2,0.001]
[1770114634308,0.0011,2293.8,2293.2,12.48944231]
[1770114634543,0.0011,2294.0,2293.3,12.48844231]
[1770114634711,0.0011,2294.0,2293.3,12.53192057]
[1770114635924,0.0011,2294.0,2293.4,1.09008459]
[1770114636110,0.0011,2294.0,2293.4,2.88844711]
[1770114637539,0.0011,2294.0,2293.4,1.79836252]
[1770114638634,0.0011,2294.0,2293.2,1.09115718]
[1770114639336,11.92258695,2294.0,2293.2,0.001]
[1770114639538,11.92258695,2294.0,2293.0,0.001]
[1770114639738,11.92258695,2294.0,2292.8,0.0018]
[1770114639927,0.1024,2293.7,2292.8,0.0018]
[1770114640129,0.1024,2293.7,2292.6,0.001]
[1770114640130,11.92148695,2293.6,2292.6,0.001]
[1770114640637,11.92148695,2293.6,2292.4,0.001]
[1770114640638,11.92148695,2293.4,2292.4,0.001]
[1770114640844,11.92148695,2293.2,2292.4,0.001]
[1770114642622,1.0902272,2293.1,2292.4,0.001]
[1770114642822,1.7267408,2293.1,2292.4,0.001]
[1770114644111,11.92148695,2293.0,2292.4,0.001]
[1770114644307,11.92148695,2293.0,2292.2,0.001]
[1770114644544,1.7267408,2293.1,2292.0,13.6236561]
[1770114644715,0.6365136,2293.1,2292.0,13.6236561]
[1770114644914,1.09017966,2293.2,2292.2,12.53192057]
[1770114645123,1.09017966,2293.2,2292.4,12.48844231]
[1770114645327,0.914,2293.3,2292.6,12.48844231]
[1770114647417,1.09102756,2293.8,2292.8,12.48844231]
[1770114647622,2.35451519,2293.7,2292.9,1.35788597]
[1770114647919,14.27600214,2293.7,2292.6,1.13390765]
[1770114648132,14.27600214,2293.7,2292.6,13.62234996]
[1770114650755,1.08998953,2293.6,2292.6,13.62234996]
[1770114651258,12.97626515,2293.6,2292.6,13.5788717]
[1770114652942,2.35451519,2293.7,2292.8,11.91779157]
[1770114653137,0.914,2293.7,2293.0,11.91779157]
[1770114653319,2.00395078,2293.7,2292.9,1.19612698]
[1770114653519,13.8902264,2293.7,2292.6,13.05169922]
[1770114654146,13.8902264,2293.7,2292.8,0.001]
[1770114655318,2.00395078,2293.7,2292.8,11.91879157]
[1770114656440,13.8902264,2293.7,2292.8,0.001]
[1770114657047,13.8902264,2293.7,2292.6,1.0904606]
[1770114657353,11.88627562,2293.5,2292.5,0.001]
[1770114659752,11.88627562,2293.3,2292.5,0.001]
[1770114659956,1.09008459,2293.4,2292.5,11.91879157]
[1770114660245,1.82509257,2293.6,2292.7,11.91779157]
[1770114660448,2.91508267,2293.6,2292.7,11.91779157]
[1770114660629,0.914,2293.7,2292.7,13.11401855]
[1770114661251,0.914,2293.7,2292.9,11.91779157]
[1770114661555,2.00394831,2293.7,2292.9,11.91779157]
[1770114661719,0.914,2293.7,2293.0,1.09027474]
[1770114661922,0.914,2293.7,2293.0,13.00806631]
[1770114662249,0.914,2293.7,2293.1,1.73692515]
[1770114662746,2.00394243,2293.7,2292.9,1.09029089]
[1770114662952,2.00394243,2293.7,2292.9,1.09031126]
[1770114663452,2.00394243,2293.7,2292.8,13.00812578]
[1770114663659,2.00394243,2293.7,2292.9,1.09030913]
[1770114663958,2.00394243,2293.7,2292.9,11.91779157]
[1770114664137,0.914,2293.7,2293.0,13.54571718]
[1770114664337,2.00394466,2293.7,2293.0,13.54571718]
[1770114665364,0.914,2293.7,2293.0,13.54571718]
[1770114665862,2.00394361,2293.7,2293.0,14.63597853]
[1770114666038,11.88627562,2293.6,2292.7,1.19622698]
[1770114666238,11.88627562,2293.6,2292.8,1.09136297]
[1770114666461,0.0011,2293.5,2292.8,0.001]
[1770114667137,0.0011,2293.5,2292.8,1.09136196]
[1770114667335,1.57285094,2293.5,2292.8,1.09136196]
[1770114668241,2.66289942,2293.5,2292.8,1.09136196]
[1770114669067,2.66289942,2293.5,2292.8,0.001]
[1770114673633,14.54917504,2293.5,2292.8,0.001]
[1770114676067,2.66289942,2293.5,2292.8,11.91879157]
[1770114677070,0.9151,2293.7,2292.9,11.91779157]
[1770114677266,0.9151,2293.7,2292.9,11.96126983]
[1770114678656,0.9151,2293.7,2293.0,13.00906631]
[1770114678950,0.9151,2293.7,2293.0,1.09127474]
[1770114679150,0.9151,2293.7,2293.1,11.91779157]
[1770114679371,0.9151,2293.7,2293.2,13.2186982]
[1770114681480,0.9151,2293.7,2293.2,14.30886918]
[1770114682378,0.9151,2293.7,2293.2,2.39107761]
[1770114682551,0.9151,2293.7,2293.0,0.001]
[1770114682552,14.29153846,2293.7,2293.0,0.001]
[1770114683488,14.29153846,2293.7,2292.8,0.001]
[1770114685160,2.00508264,2293.7,2292.8,12.06091796]
[1770114685357,2.00508264,2293.7,2292.9,13.26600976]
[1770114687290,2.00508264,2293.7,2292.9,1.2060918]
[1770114687468,2.00508264,2293.7,2292.8,1.09133358]
[1770114687664,2.00508264,2293.7,2292.9,1.09031862]
[1770114687997,2.00508264,2293.7,2292.8,1.0913353]
[1770114688285,14.29153846,2293.7,2292.8,1.0913353]
[1770114689670,14.29153846,2293.7,2292.8,1.11135226]
[1770114689873,1.86522608,2293.6,2292.8,2.86464373]
[1770114691154,1.86522608,2293.6,2293.0,12.06091796]
[1770114691350,0.0011,2293.5,2293.0,12.06091796]
[1770114691665,0.0011,2293.5,2293.0,13.15114646]
[1770114692494,0.9151,2293.7,2293.0,13.15114646]
[1770114692698,0.9151,2293.7,2293.1,12.05991796]
[1770114694290,0.9151,2293.7,2293.2,13.15009762]
[1770114694587,0.9151,2293.7,2293.3,0.70384728]
[1770114695375,0.90556585,2293.7,2293.3,0.70384728]
[1770114695579,0.914,2293.6,2293.3,0.70384728]
[1770114695763,0.91260892,2293.6,2293.3,0.70384728]
[1770114696477,4.35903324,2294.1,2293.3,1.7939708]
[1770114696478,0.914,2293.7,2293.3,1.7939708]
[1770114696667,0.914,2293.7,2293.4,1.38538888]
[1770114699092,2.00394478,2293.7,2293.3,0.70384728]
[1770114699288,0.914,2293.7,2293.1,1.09019126]
[1770114699487,0.00219997,2293.6,2293.1,1.09019126]
[1770114700680,0.00219997,2293.6,2293.0,1.09124642]
[1770114701982,0.00219997,2293.6,2293.0,0.001]
[1770114703107,0.00219997,2293.6,2293.3,0.001]
[1770114703495,12.28645582,2293.4,2293.0,0.001]
[1770114704380,4.36223756,2293.6,2293.0,12.06091796]
[1770114704381,0.00219997,2293.6,2293.0,12.06091796]
[1770114704703,0.81862369,2293.5,2293.0,12.06091796]
[1770114705009,2.00395441,2293.7,2293.0,12.06091796]
[1770114705180,2.00395441,2293.7,2293.0,13.26710976]
[1770114705181,0.81861677,2293.6,2293.0,13.26710976]
[1770114705501,0.81861677,2293.5,2293.0,13.26710976]
[1770114705701,0.914,2293.7,2293.0,13.26710976]
[1770114705902,0.81876437,2293.6,2293.0,13.26710976]
[1770114706086,2.00394354,2293.7,2293.1,1.32671098]
[1770114706291,0.81880446,2293.6,2293.1,1.32671098]
[1770114706640,0.00219997,2293.4,2293.1,1.32671098]
[1770114706808,12.28645582,2293.2,2292.5,0.001]
[1770114707109,13.10476456,2293.1,2292.5,0.001]
[1770114707294,1.73230874,2293.0,2292.5,0.001]
[1770114707498,13.20045582,2293.0,2292.5,0.001]
[1770114708009,1.09032229,2292.9,2292.5,0.001]
[1770114710025,0.00219997,2292.8,2292.5,0.001]
[1770114712019,1.09041741,2292.7,2292.1,0.001]
[1770114712226,14.82419891,2292.7,2292.1,0.001]
[1770114712435,12.03288989,2292.3,2291.1,0.22785983]
[1770114712728,11.98941163,2292.1,2290.9,12.56623966]
[1770114712890,11.98941163,2291.9,2291.0,1.25662397]
[1770114713095,0.81617221,2291.8,2291.0,1.25662397]
[1770114713315,11.98941163,2291.9,2291.0,13.82286363]
[1770114714229,1.09304559,2291.8,2291.0,1.25662397]
[1770114714409,1.09304559,2291.8,2291.0,2.34783493]
[1770114714714,1.09304559,2291.8,2291.1,0.23478349]
[1770114715310,0.00219997,2291.8,2291.1,12.80102315]
[1770114715495,12.90341163,2292.2,2291.1,12.80102315]
[1770114715700,1.09070284,2292.1,2291.1,12.80102315]
[1770114716529,1.09070284,2292.1,2291.2,1.09113128]
[1770114716701,1.09070284,2292.1,2291.3,1.38921544]
[1770114717024,1.09070284,2292.1,2291.3,1.39021544]
[1770114718612,0.914,2292.0,2291.3,2.48126217]
[1770114718806,2.00475813,2292.0,2291.3,2.48126217]
[1770114719010,2.00475813,2292.0,2291.3,1.39021544]
[1770114719217,2.00475813,2292.0,2291.4,0.24813174]
[1770114720504,13.99416976,2292.0,2291.3,0.001]
[1770114720928,14.03764802,2292.0,2290.7,0.0008]
[1770114721240,11.98941163,2291.6,2290.7,0.0008]
[1770114722420,0.04347826,2291.5,2290.7,0.0008]
[1770114722621,11.98941163,2291.0,2290.1,0.0008]
[1770114722814,11.98941163,2291.0,2290.1,1.3666738]
[1770114722815,0.914,2290.9,2290.1,1.3666738]
[1770114723227,12.90341163,2290.9,2290.1,1.3666738]
[1770114723528,12.90341163,2290.9,2290.1,0.0008]
[1770114723529,0.914,2290.9,2290.1,0.0008]
[1770114724003,12.90341163,2290.9,2290.1,0.0008]
[1770114724394,12.66622974,2290.9,2290.1,0.0008]
[1770114724612,1.0913218,2290.8,2290.1,0.0008]
[1770114724817,1.76812411,2290.9,2290.1,0.0008]
[1770114725529,0.67681811,2290.9,2290.1,12.56703966]
[1770114725829,0.67681811,2290.9,2290.2,1.25670397]
[1770114726127,1.76809685,2290.9,2290.2,1.25670397]
[1770114726427,0.67681811,2290.9,2290.2,1.25670397]
[1770114726818,1.76809515,2290.9,2290.2,1.25670397]
[1770114727018,13.75750678,2290.9,2290.1,0.0008]
[1770114727199,13.75750678,2290.9,2290.1,1.09245419]
[1770114728133,13.49247829,2290.9,2290.1,0.0008]
[1770114728315,13.49247829,2290.9,2290.3,0.001]
[1770114730035,0.41178962,2290.9,2290.3,0.001]
[1770114730228,1.50307701,2290.9,2290.3,0.001]
[1770114730534,13.49248864,2290.9,2290.3,0.001]
[1770114731708,14.47393354,2290.9,2290.3,0.001]
[1770114733427,2.48452191,2290.9,2290.3,0.001]
[1770114733631,1.50307701,2290.9,2290.3,0.001]
[1770114733810,1.50307701,2290.9,2290.3,12.56723966]
[1770114734154,1.50307701,2290.9,2290.3,0.001]
[1770114734642,13.49248717,2290.9,2290.3,0.001]
[1770114734812,0.41178962,2290.9,2290.3,0.001]
[1770114735131,0.41178962,2290.9,2290.3,1.25780397]
[1770114735535,0.41178962,2290.9,2290.4,1.09151239]
[1770114736031,1e-08,2290.9,2290.4,1.09151239]
[1770114736608,1e-08,2290.9,2290.4,13.65775205]
[1770114737324,11.98941163,2291.5,2290.4,13.65775205]
[1770114737504,11.98941163,2291.5,2290.3,5.62401576]
[1770114737505,0.915,2291.6,2290.7,13.65760911]
[1770114740828,0.0011,2291.4,2290.8,12.46300395]
[1770114741926,14.07149571,2292.1,2291.1,12.46300395]
[1770114741927,12.98075666,2292.1,2291.1,12.46300395]
[1770114742132,2.00564046,2292.3,2291.1,12.46300395]
[1770114742334,14.98639712,2292.3,2291.1,12.46300395]
[1770114742558,16.92126197,2292.3,2291.2,13.70930435]
[1770114744060,0.915,2292.3,2291.4,12.46300395]
[1770114746167,0.915,2292.3,2291.5,13.55399238]
[1770114746475,2.00561559,2292.3,2291.5,1.09098843]
[1770114746693,15.02985051,2292.3,2291.4,1.09100561]
[1770114746961,12.98075666,2291.9,2291.0,4.36490367]
[1770114747132,12.98075666,2291.9,2291.1,1.09115208]
[1770114747328,12.98075666,2291.9,2291.2,1.0911241]
[1770114747532,12.98075666,2291.9,2291.2,1.63672688]
[1770114747965,12.98075666,2291.9,2291.3,1.09107762]
[1770114748459,14.07156149,2291.9,2291.2,1.63670333]
[1770114749460,5.27744883,2292.3,2291.2,14.09970728]
[1770114749461,0.915,2292.3,2291.2,14.09970728]
[1770114750263,14.9863673,2292.3,2291.2,14.09970728]
[1770114750465,14.9863673,2292.3,2291.4,1.09103604]
[1770114750670,14.98637264,2292.3,2291.4,1.09103604]
[1770114751678,13.89575666,2292.3,2291.4,1.09103604]
[1770114752261,14.98639252,2292.3,2291.4,1.09103604]
[1770114752571,14.98639252,2292.3,2291.3,4.36414419]
[1770114752771,16.92125938,2292.3,2291.4,0.60008306]
[1770114752968,12.98075666,2292.2,2291.4,0.60008306]
[1770114754144,0.0011,2291.7,2291.2,1.63669872]
[1770114756706,0.0011,2291.7,2291.2,1.09112642]
[1770114757472,12.98185666,2291.7,2291.1,1.09117333]
[1770114757668,12.98185666,2291.7,2291.0,1.09219136]
[1770114758052,12.98185666,2291.7,2291.0,0.001]
[1770114758955,12.98075666,2291.5,2291.0,0.001]
[1770114759156,14.38792641,2291.4,2291.0,0.001]
[1770114759673,14.38792641,2291.4,2290.8,0.001]
[1770114760786,1.40716975,2291.4,2290.8,0.001]
[1770114760947,0.915,2291.5,2290.8,0.001]
[1770114762251,2.00598894,2291.5,2290.8,0.001]
[1770114762966,1.99326149,2291.5,2290.8,0.001]
[1770114764273,0.90227255,2291.5,2290.8,0.001]
[1770114764599,0.90227255,2291.5,2290.8,1.79308995]
[1770114764797,0.90227255,2291.5,2290.8,0.001]
[1770114767064,13.02423492,2291.2,2290.4,0.001]
[1770114767263,14.97402734,2291.5,2290.5,1.09145085]
[1770114768148,14.97402734,2291.5,2291.0,0.001]
[1770114768398,14.91455477,2291.4,2291.0,0.001]
[1770114769057,1.09108366,2291.3,2291.0,0.001]
[1770114769287,12.98075666,2291.1,2290.4,0.001]
[1770114769466,12.98075666,2290.7,2290.3,0.001]
[1770114769781,0.915,2290.6,2290.1,0.0018]
[1770114769984,2.2946109,2290.6,2290.1,0.0018]
[1770114770765,12.46448642,2290.5,2290.1,0.0018]
[1770114771067,13.55599881,2290.4,2289.8,0.001]
[1770114772488,13.55599881,2290.4,2289.3,1.0927988]
[1770114772655,14.78991571,2290.3,2289.4,0.54611074]
[1770114772975,14.78991571,2290.3,2289.3,0.0008]
[1770114773181,1.09160771,2290.2,2289.3,0.0008]
[1770114773382,14.08931858,2290.2,2289.3,0.0008]
[1770114775088,12.99771087,2290.0,2289.3,0.0008]
[1770114775286,12.99771087,2290.0,2288.5,0.3070668]
[1770114775287,15.0044616,2289.9,2288.5,0.3070668]
[1770114775487,14.93485732,2289.8,2288.6,1.09236893]
[1770114775687,14.93485732,2289.8,2288.5,13.60358368]
[1770114776396,12.99771087,2289.5,2288.5,1.39947695]
[1770114776568,12.99771087,2289.5,2288.6,1.09236555]
[1770114776766,14.30182978,2289.5,2288.6,1.09236555]
[1770114777979,2.39607511,2289.5,2288.6,13.29649815]
[1770114778167,1.0919562,2289.5,2288.6,13.29649815]
[1770114778565,14.08966707,2289.5,2288.6,1.09236555]
[1770114779493,1.0919562,2289.5,2288.6,1.09236555]
[1770114779995,14.08955696,2289.7,2288.6,1.09236555]
[1770114780597,14.13303522,2289.7,2288.6,1.09236555]
[1770114780782,14.85210066,2289.6,2288.8,0.001]
[1770114781772,12.99771087,2289.2,2288.5,0.3080668]
[1770114781968,2.00717826,2289.1,2288.5,0.3080668]
[1770114782969,15.00488913,2289.1,2288.5,0.3080668]
[1770114783366,15.00488913,2289.1,2288.5,0.001]
[1770114783690,1.93732859,2289.0,2288.5,0.001]
[1770114784267,3.02954032,2289.0,2288.5,0.001]
[1770114785485,1.85438979,2289.6,2288.5,12.2051326]
[1770114785669,0.915,2289.6,2288.5,12.2051326]
[1770114786173,13.91271087,2289.6,2288.5,0.001]
[1770114786686,1.09194147,2289.5,2288.5,0.001]
[1770114786890,12.99771087,2289.4,2288.5,0.001]
[1770114787072,14.45015436,2289.3,2288.5,0.001]
[1770114787595,14.4066761,2289.3,2288.5,0.001]
[1770114788098,13.04118913,2289.2,2288.5,0.001]
[1770114788479,12.99771087,2289.2,2288.5,0.001]
[1770114788681,14.08984314,2289.1,2288.5,0.001]
[1770114788884,2.76083723,2289.0,2288.5,0.001]
[1770114789112,15.7585481,2289.0,2288.5,0.001]
[1770114789601,15.7585481,2289.0,2287.8,1.09271665]
[1770114790303,13.04118913,2288.5,2287.3,1.09296821]
[1770114790521,12.99771087,2288.3,2287.3,1.09296821]
[1770114790680,14.0902727,2288.2,2287.0,1.09313511]
[1770114790875,11.15370362,2287.9,2286.9,1.09315039]
[1770114791080,0.916,2287.8,2286.9,13.29728299]
[1770114792396,0.916,2287.8,2286.9,1.09315039]
[1770114792619,13.04118913,2287.6,2286.6,1.39008575]
[1770114792779,12.99771087,2287.3,2286.6,1.09332449]
[1770114793096,0.916,2287.2,2286.6,1.0933253]
[1770114793278,0.916,2287.8,2286.6,13.2974579]
[1770114793482,0.916,2287.8,2286.8,12.2041326]
[1770114794786,2.00877844,2287.8,2286.8,1.09323071]
[1770114795201,0.916,2287.8,2286.8,1.09323071]
[1770114795392,2.00876173,2287.8,2286.8,1.09323071]
[1770114795897,15.0064726,2287.8,2286.8,1.09323071]
[1770114796101,15.0064726,2287.8,2286.9,0.72332482]
[1770114796432,15.0064726,2287.8,2286.6,0.001]
[1770114796433,12.99771087,2287.4,2286.6,0.001]
[1770114796912,0.04347826,2287.2,2285.7,13.29788943]
[1770114797209,14.09054031,2287.7,2285.9,12.24761086]
[1770114797513,14.09054031,2287.7,2286.1,12.2041326]
[1770114797712,16.22799047,2287.7,2286.2,1.22041326]
[1770114798007,0.04347826,2287.5,2286.2,1.22041326]
[1770114798208,13.04118913,2287.4,2285.9,0.1024]
[1770114798410,13.04118913,2287.2,2285.7,1.09375683]
[1770114798624,12.99771087,2287.0,2285.7,1.09375683]
[1770114798780,12.99771087,2286.8,2285.8,0.54688869]
[1770114798983,1.09327852,2286.7,2285.8,1.64056253]
[1770114799198,14.09098939,2286.7,2285.8,1.64056253]
[1770114799599,1.09314578,2287.0,2285.8,1.64056253]
[1770114799798,15.00682246,2287.1,2285.8,1.64056253]
[1770114800114,1.84583723,2287.0,2285.9,1.82197194]
[1770114800291,13.91371087,2287.1,2285.9,1.82197194]
[1770114800292,13.86225914,2287.1,2285.9,1.82197194]
[1770114800606,13.86225914,2287.1,2285.8,1.64056253]
[1770114800607,12.76914693,2287.1,2285.8,14.32827292]
[1770114800810,13.86223561,2287.1,2285.8,14.32827292]
[1770114802009,13.90571387,2287.1,2285.8,1.64056253]
[1770114802314,11.89662519,2287.0,2285.8,1.64056253]
[1770114802610,11.85314693,2286.8,2285.8,1.64056253]
[1770114802816,11.85314693,2286.4,2285.1,0.22800088]
[1770114803121,11.85314693,2286.4,2283.8,3.17771357]
[1770114803122,1.09346979,2286.3,2284.8,13.78189806]
[1770114803293,0.59021316,2286.2,2285.0,12.68771039]
[1770114803627,1.4627349,2286.2,2285.0,12.68771039]
[1770114803814,0.916,2286.2,2285.0,12.68771039]
[1770114804137,12.76914693,2286.2,2284.9,1.8456007]
[1770114804315,11.89662519,2286.1,2284.9,1.8456007]
[1770114804482,11.89662519,2286.1,2284.7,17.36181935]
[1770114804483,11.89662519,2285.6,2284.7,0.29735826]
[1770114804688,0.04347826,2285.5,2284.6,1.09427661]
[1770114804888,1.09390041,2285.4,2284.2,1.09447508]
[1770114805091,11.85314693,2285.3,2284.1,1.09449009]
[1770114805387,1.39065256,2285.2,2284.1,1.09449009]
[1770114805618,0.04347826,2285.1,2284.1,1.09452272]
[1770114805790,1.39065256,2285.2,2284.1,13.78223311]
[1770114805990,2.05337867,2285.4,2284.1,13.78223311]
[1770114806194,0.04347826,2285.1,2284.1,1.09452272]
[1770114806408,11.89662519,2285.2,2284.2,0.54727999]
[1770114806613,11.89662519,2285.1,2284.2,0.54727999]
[1770114806818,11.89662519,2285.1,2283.1,0.37437681]
[1770114806819,11.89662519,2284.5,2283.1,0.37437681]
[1770114807039,0.04347826,2285.0,2283.1,0.37437681]
[1770114807040,11.85314693,2284.4,2283.1,1.0950024]
[1770114807188,11.85314693,2285.1,2283.4,12.68771039]
[1770114807396,0.916,2285.2,2283.8,12.68771039]
[1770114807698,0.916,2285.2,2283.9,1.27901104]
[1770114807699,0.04347826,2285.0,2283.9,1.27901104]
[1770114807890,11.85314693,2285.0,2283.6,12.68771039]
[1770114808119,12.76914693,2285.2,2283.5,12.73118865]
[1770114808304,12.76914693,2285.2,2283.6,12.73118865]
[1770114808619,12.76914693,2285.2,2284.3,0.001]
[1770114808930,0.916,2285.2,2284.3,0.001]
[1770114809269,11.85314693,2286.0,2284.3,14.5091668]
[1770114809523,13.86377428,2286.0,2284.5,12.68771039]
[1770114809694,13.90725254,2286.0,2284.5,12.68771039]
[1770114809894,13.86377428,2286.0,2284.3,14.55264506]
[1770114810210,1.82817057,2285.9,2284.5,12.68771039]
[1770114810791,2.01062349,2286.0,2284.7,12.68771039]
[1770114811024,0.917,2286.0,2284.8,13.78189806]
[1770114811592,0.917,2286.0,2284.8,13.82537632]
[1770114812024,12.94640514,2286.8,2285.2,12.68771039]
[1770114812332,1.7320428,2286.7,2285.3,13.96672143]
[1770114813129,0.0011,2286.9,2285.4,13.7816108]
[1770114813920,0.0011,2286.9,2285.4,13.82508906]
[1770114814123,0.0011,2286.9,2286.0,12.68771039]
[1770114814337,0.0008,2287.7,2286.0,12.68771039]
[1770114814626,0.0008,2287.7,2286.2,12.68771039]
[1770114814842,0.6389416,2287.7,2286.3,13.96082926]
[1770114815010,0.0008,2287.7,2286.4,1.09342197]
[1770114815196,11.85394693,2287.7,2286.4,1.09342197]
[1770114815393,11.89662519,2287.6,2286.3,1.09344161]
[1770114815592,11.85314693,2287.4,2286.3,1.093468]
[1770114815830,11.89662519,2287.6,2285.8,12.68771039]
[1770114816013,11.85314693,2287.4,2286.1,4.3742527]
[1770114816192,11.85314693,2287.4,2286.1,1.0935314]
[1770114816398,11.89662519,2287.2,2285.9,1.26877104]
[1770114816605,11.85314693,2287.2,2286.3,1.09344749]
[1770114816838,13.09071554,2287.5,2285.7,12.68771039]
[1770114817013,11.85314693,2287.5,2286.3,1.0934669]
[1770114817357,12.94606268,2287.5,2286.0,17.06211609]
[1770114817525,1.09361928,2287.7,2286.1,12.68771039]
[1770114817726,0.0008,2287.7,2286.3,12.73118865]
[1770114818047,0.0008,2287.7,2286.5,12.68771039]
[1770114819244,0.0008,2287.7,2286.6,13.78103672]
[1770114819436,0.0008,2287.7,2286.6,13.82451498]
[1770114820862,0.0008,2287.7,2286.8,12.68771039]
[1770114821622,0.0008,2287.7,2286.9,1.09318291]
[1770114821822,0.0008,2287.7,2287.0,1.81536249]
[1770114822625,0.0011,2287.5,2287.0,1.81536249]
[1770114823047,0.0011,2287.7,2287.0,14.50307288]
[1770114823248,0.0008,2288.4,2287.2,12.68771039]
[1770114823456,0.0008,2288.4,2287.3,1.09299173]
[1770114823632,0.0008,2288.4,2287.4,14.5029773]
[1770114825641,0.0008,2288.4,2287.5,1.09289617]
[1770114830058,0.0008,2288.4,2287.4,2.90817653]
[1770114830245,0.0008,2288.4,2287.4,1.09290962]
[1770114831263,12.18358769,2288.4,2287.4,1.09290962]
[1770114832461,1.09251409,2288.3,2287.1,4.37230498]
[1770114832873,1.09251409,2288.3,2287.1,16.69979957]
[1770114833173,1.7646035,2288.2,2287.2,1.96082494]
[1770114833472,13.94739119,2288.2,2287.1,4.37230498]
[1770114834475,13.27539727,2288.1,2287.0,1.81536249]
[1770114834676,13.27539727,2288.1,2287.0,1.09313412]
[1770114836378,13.27539727,2288.1,2286.6,12.32749459]
[1770114836684,12.18278769,2287.9,2286.7,2.33037581]
[1770114837087,12.18278769,2287.9,2286.7,14.6578704]
[1770114837750,1.94104078,2288.0,2286.7,14.6578704]
[1770114837952,1.09260958,2288.1,2286.7,14.70134866]
[1770114839047,1.09260958,2288.1,2286.8,12.37097285]
[1770114839575,13.27539727,2288.1,2286.8,12.37097285]
[1770114839954,13.27539727,2288.1,2286.8,12.32749459]
[1770114840552,13.27539727,2288.1,2286.8,1.09321418]
[1770114840754,12.18278769,2287.9,2286.8,1.09321418]
[1770114840982,12.18278769,2287.9,2286.8,1.09322845]
[1770114842470,12.18278769,2287.9,2286.8,1.13687395]
[1770114842663,13.27554055,2287.8,2286.7,1.09327852]
[1770114843053,1.09275286,2287.8,2286.8,0.04364168]
[1770114843377,0.54637643,2287.7,2286.8,0.59466365]
[1770114843760,3.94983198,2288.0,2286.8,12.92215824]
[1770114843960,2.85715078,2288.0,2286.8,12.87851656]
[1770114844288,2.85715078,2288.0,2286.8,12.92199482]
[1770114844289,0.916,2288.0,2286.8,12.92199482]
[1770114844673,0.916,2288.0,2287.0,12.32749459]
[1770114844674,2.00866375,2288.0,2287.0,12.32749459]
[1770114845052,14.19145144,2288.0,2286.9,1.09318291]
[1770114845289,13.08142797,2287.9,2286.9,1.09318291]
[1770114845456,12.18278769,2287.9,2286.9,1.09318291]
[1770114845656,1.41914514,2287.8,2286.9,2.75536388]
[1770114845991,1.41914514,2287.8,2286.8,0.01286786]
[1770114846200,1.41914514,2287.8,2286.8,1.09322276]
[1770114846201,13.60193283,2287.8,2286.8,1.09322276]
[1770114846683,1.09280062,2287.7,2286.8,1.09322276]
[1770114846881,1.09280062,2287.7,2286.8,1.10449012]
[1770114847460,1.09280062,2287.7,2286.7,19.82073723]
[1770114847788,0.68829593,2287.6,2286.8,1.34444461]
[1770114848162,0.68829593,2287.6,2286.7,1.09324264]
[1770114849053,0.68829593,2287.6,2286.5,4.37311409]
[1770114849259,12.18278769,2287.4,2286.3,0.001]
[1770114849571,13.08207714,2287.3,2287.0,0.001]
[1770114849885,13.08207714,2287.2,2286.3,1.09446689]
[1770114850082,12.18278769,2287.2,2286.8,0.001]
[1770114850668,13.09878769,2287.2,2286.8,0.001]
[1770114851186,13.09878769,2287.2,2286.3,0.5478674]
[1770114851187,13.275875,2287.1,2286.3,0.5478674]
[1770114851378,13.275875,2287.1,2286.3,0.001]
[1770114851379,12.18278769,2286.9,2286.3,0.001]
[1770114851591,1.30821997,2286.8,2285.5,12.32749459]
[1770114851754,1.30821997,2286.8,2284.8,4.42020041]
[1770114851755,13.49100766,2286.8,2285.7,1.09372556]
[1770114851967,13.49100766,2286.8,2285.1,4.3761057]
[1770114851968,12.18278769,2286.5,2285.1,4.3761057]
[1770114852189,0.04347826,2286.6,2285.2,1.09396174]
[1770114852190,12.18278769,2286.3,2285.2,1.09396174]
[1770114852384,12.18278769,2286.3,2285.3,0.54700674]
[1770114852587,12.18278769,2286.3,2285.1,1.09401159]
[1770114852787,13.08043533,2286.2,2285.1,1.09401159]
[1770114853099,12.18278769,2286.2,2285.1,1.09401159]
[1770114853286,1.09356546,2286.1,2285.0,1.0940919]
[1770114853499,13.27635315,2286.1,2284.9,1.09410517]
[1770114853799,13.94784919,2286.0,2285.0,0.54708071]
[1770114854575,1.7650615,2286.0,2285.0,12.8745753]
[1770114854776,1.09356546,2286.1,2285.0,12.8745753]
[1770114855307,1.09356546,2286.1,2285.0,0.54708071]
[1770114855478,16.55704953,2286.3,2285.1,1.09404402]
[1770114855681,12.18278769,2286.2,2285.1,1.09404402]
[1770114858004,1.09356546,2286.1,2285.1,1.09404402]
[1770114858311,1.7650615,2286.0,2285.2,0.60612528]
[1770114859112,13.94784919,2286.0,2285.0,1.64116913]
[1770114859408,13.94784919,2286.0,2284.9,1.0941088]
[1770114859603,13.94784919,2286.0,2284.8,1.09418703]